lending/lending_fUSD_20251107
["ID","MTS","AMOUNT","RATE_DAILY","PERIOD"]
[393372981,1762542139708,151.0,0.00016134,2]
[393372982,1762542140198,151.0,0.00016134,2]
[393372983,1762542140315,151.0,0.00016134,2]
[393372984,1762542140857,151.0,0.00016134,2]
[393372985,1762542140980,151.0,0.00016134,2]
[393372986,1762542141463,151.0,0.00016134,2]
[393372987,1762542141607,151.0,0.00016134,2]
[393372988,1762542142780,151.0,0.00016134,2]
[393372989,1762542143450,151.0,0.00016134,2]
[393372990,1762542144119,151.0,0.00016134,2]
[393372991,1762542144785,151.0,0.00016134,2]
[393372992,1762542145458,151.0,0.00016134,2]
[393372993,1762542146099,151.0,0.00016134,2]
[393372995,1762542147199,151.0,0.00016134,2]
[393372999,1762542253729,150.0,0.00016008,2]
[393373000,1762542307423,212.0,0.00018,30]
[393373003,1762542432832,151.0,0.00016134,2]
[393373004,1762542433459,151.0,0.00016134,2]
[393373005,1762542434147,227.18748819,0.00016134,2]
[393373006,1762542445676,-366.2166,0.00016134,2]
[393373014,1762542542557,251.99,0.00016029,2]
[393373016,1762542607666,-500.0,0.00016034,2]
[393373017,1762542607700,-772.94,0.00016438,2]
[393373018,1762542607732,-106.62,0.00016548,2]
[393373019,1762542607802,-240.88,0.00016548,2]
[393373049,1762542631914,-195.0,0.00016236,2]
[393373052,1762542631924,-1000.0,0.00016662,2]
[393373054,1762542631934,-490.0,0.00016689,2]
[393373056,1762542631944,-244.0,0.00016689,2]
[393373058,1762542631954,-300.0,0.00016689,2]
[393373060,1762542631964,-1200.0,0.00016689,2]
[393373061,1762542631973,-3548.69127865,0.0001669,2]
[393373063,1762542631982,-217.49120534,0.0001669,2]
[393373065,1762542631992,-3725.33798334,0.0001669,2]
[393373066,1762542632003,-1294.83,0.00016698,2]
[393373069,1762542632014,-550.0,0.00016772,2]
[393373071,1762542632035,-500.0,0.00016773,2]
[393373073,1762542632046,-500.71108766,0.00016773,2]
[393373075,1762542632062,-500.0,0.00016773,2]
[393373078,1762542632073,-4556.37,0.00016773,2]
[393373080,1762542632083,-9999.99,0.00016773,2]
[393373082,1762542632094,-14065.86,0.00016773,2]
[393373084,1762542632104,-500.0,0.00016773,2]
[393373086,1762542632114,-500.0,0.00016773,2]
[393373088,1762542632124,-168.23721633,0.00016773,2]
[393373089,1762542632135,-503.03575028,0.00016773,2]
[393373090,1762542632145,-500.0,0.00016773,2]
[393373091,1762542632155,-504.75986535,0.00016773,2]
[393373092,1762542632166,-500.0,0.00016773,2]
[393373093,1762542632176,-500.0,0.00016773,2]
[393373095,1762542632185,-500.0,0.00016773,2]
[393373097,1762542632195,-486.35532093,0.00016773,2]
[393373099,1762542632205,-500.0,0.00016773,2]
[393373100,1762542632215,-500.0,0.00016773,2]
[393373101,1762542632224,-319.99,0.00016773,2]
[393373102,1762542632234,-500.0,0.00016789,2]
[393373103,1762542632244,-500.0,0.00016789,2]
[393373104,1762542632253,-460.0,0.00016789,2]
[393373105,1762542632263,-500.0,0.00016789,2]
[393373106,1762542632273,-500.0,0.00016789,2]
[393373107,1762542632282,-515.63484931,0.00016789,2]
[393373108,1762542632291,-500.0,0.00016789,2]
[393373109,1762542632303,-500.0,0.00016789,2]
[393373110,1762542632313,-500.0,0.00016789,2]
[393373111,1762542632322,-500.0,0.00016789,2]
[393373112,1762542632332,-500.0,0.00016789,2]
[393373113,1762542632343,-500.0,0.00016789,2]
[393373114,1762542632352,-2950.45870442,0.00016789,2]
[393373115,1762542632362,-1000.0,0.00016789,2]
[393373116,1762542632372,-1000.0,0.00016789,2]
[393373117,1762542632381,-385.48485231,0.00016789,2]
[393373118,1762542632391,-500.0,0.00016789,2]
[393373119,1762542632401,-217.20501353,0.00016789,2]
[393373120,1762542632410,-500.0,0.00016789,2]
[393373121,1762542632420,-500.0,0.00016789,2]
[393373122,1762542632429,-500.0,0.00016789,2]
[393373124,1762542632438,-500.0,0.00016789,2]
[393373126,1762542632448,-500.0,0.00016789,2]
[393373128,1762542632458,-500.0,0.00016789,2]
[393373130,1762542632467,-520.79268409,0.00016789,2]
[393373132,1762542632476,-500.0,0.00016789,2]
[393373134,1762542632485,-500.0,0.00016789,2]
[393373135,1762542632495,-167.26407768,0.00016789,2]
[393373138,1762542632505,-500.0,0.00016789,2]
[393373140,1762542632515,-169.94130682,0.00016789,2]
[393373141,1762542632524,-500.0,0.00016789,2]
[393373142,1762542632533,-169.94130682,0.00016789,2]
[393373143,1762542632543,-500.0,0.00016789,2]
[393373144,1762542632552,-154.12324818,0.00016789,2]
[393373145,1762542632562,-154.12324818,0.00016789,2]
[393373146,1762542632571,-500.0,0.00016789,2]
[393373147,1762542632584,-500.0,0.00016789,2]
[393373148,1762542632595,-154.12324818,0.00016789,2]
[393373149,1762542632604,-500.0,0.00016789,2]
[393373150,1762542632614,-500.0,0.00016789,2]
[393373151,1762542632624,-500.0,0.00016789,2]
[393373152,1762542632633,-500.0,0.00016789,2]
[393373153,1762542632644,-500.0,0.00016789,2]
[393373154,1762542632654,-500.0,0.00016789,2]
[393373155,1762542632663,-500.0,0.00016789,2]
[393373156,1762542632673,-500.0,0.00016789,2]
[393373157,1762542632684,-500.0,0.00016789,2]
[393373158,1762542632695,-500.0,0.00016789,2]
[393373159,1762542632705,-500.0,0.00016789,2]
[393373160,1762542632714,-500.0,0.00016789,2]
[393373161,1762542632724,-500.0,0.00016789,2]
[393373162,1762542632734,-500.0,0.00016789,2]
[393373163,1762542632743,-500.0,0.00016789,2]
[393373164,1762542632753,-500.0,0.00016789,2]
[393373165,1762542632762,-500.0,0.00016789,2]
[393373166,1762542632772,-500.0,0.00016789,2]
[393373167,1762542632781,-500.0,0.00016789,2]
[393373168,1762542632791,-500.0,0.00016789,2]
[393373169,1762542632801,-500.0,0.00016789,2]
[393373170,1762542632811,-500.0,0.00016789,2]
[393373171,1762542632820,-500.0,0.00016789,2]
[393373172,1762542632831,-500.0,0.00016789,2]
[393373173,1762542632842,-189.45422722,0.00016789,2]
[393373174,1762542632855,-500.0,0.00016789,2]
[393373175,1762542632864,-500.0,0.00016789,2]
[393373176,1762542632874,-500.0,0.00016789,2]
[393373177,1762542632884,-500.0,0.00016789,2]
[393373178,1762542632894,-500.0,0.00016789,2]
[393373179,1762542632903,-500.0,0.00016789,2]
[393373180,1762542632913,-500.0,0.00016789,2]
[393373181,1762542632925,-500.0,0.00016789,2]
[393373182,1762542632935,-500.0,0.00016789,2]
[393373183,1762542632945,-488.71092336,0.00016789,2]
[393373184,1762542632955,-500.0,0.00016789,2]
[393373185,1762542632965,-154.12324818,0.00016789,2]
[393373186,1762542632978,-500.0,0.00016789,2]
[393373187,1762542632987,-154.12324818,0.00016789,2]
[393373188,1762542632997,-500.0,0.00016789,2]
[393373189,1762542633007,-154.12324818,0.00016789,2]
[393373190,1762542633017,-500.0,0.00016789,2]
[393373191,1762542633026,-154.12324818,0.00016789,2]
[393373192,1762542633036,-500.0,0.00016789,2]
[393373193,1762542633046,-154.12324818,0.00016789,2]
[393373194,1762542633056,-500.0,0.00016789,2]
[393373195,1762542633066,-154.12324818,0.00016789,2]
[393373196,1762542633076,-500.0,0.00016789,2]
[393373197,1762542633086,-154.12324818,0.00016789,2]
[393373198,1762542633095,-500.0,0.00016789,2]
[393373199,1762542633105,-154.12324818,0.00016789,2]
[393373200,1762542633115,-500.0,0.00016789,2]
[393373201,1762542633124,-154.12324818,0.00016789,2]
[393373202,1762542633134,-500.0,0.00016789,2]
[393373203,1762542633144,-154.12324818,0.00016789,2]
[393373204,1762542633153,-500.0,0.00016789,2]
[393373205,1762542633163,-154.12324818,0.00016789,2]
[393373206,1762542633172,-500.0,0.00016789,2]
[393373207,1762542633182,-154.12324818,0.00016789,2]
[393373208,1762542633191,-500.0,0.00016789,2]
[393373209,1762542633202,-154.12324818,0.00016789,2]
[393373210,1762542633211,-500.0,0.00016789,2]
[393373211,1762542633221,-154.12324818,0.00016789,2]
[393373212,1762542633231,-500.0,0.00016789,2]
[393373213,1762542633240,-154.12324818,0.00016789,2]
[393373214,1762542633250,-500.0,0.00016789,2]
[393373215,1762542633259,-154.12324818,0.00016789,2]
[393373216,1762542633269,-500.0,0.00016789,2]
[393373217,1762542633278,-154.12324818,0.00016789,2]
[393373218,1762542633287,-500.0,0.00016789,2]
[393373219,1762542633296,-154.12324818,0.00016789,2]
[393373220,1762542633307,-500.0,0.00016789,2]
[393373221,1762542633317,-154.12324818,0.00016789,2]
[393373222,1762542633326,-13800.90657203,0.0001679,2]
[393373223,1762542633340,-78556.13243737,0.0001679,2]
[393373224,1762542633360,-302.0,0.0001679,2]
[393373225,1762542633382,-513.6,0.0001679,2]
[393373226,1762542633394,-383.47776338,0.0001679,2]
[393373237,1762542637928,-691.20796414,0.0001679,2]
[393373238,1762542638040,-6832.89182072,0.0001679,2]
[393373239,1762542638097,-6629.9836496,0.0001679,2]
[393373240,1762542638113,-3021.05781,0.0001679,2]
[393373241,1762542638126,-912.66,0.0001679,2]
[393373250,1762542639878,-937.05173113,0.0001679,2]
[393373251,1762542639937,-2050.77884625,0.0001679,2]
[393373252,1762542639948,-6649.7338226,0.0001679,2]
[393373253,1762542639962,-216056.661721,0.0001679,2]
[393373254,1762542639974,-82661.85586178,0.0001679,2]
[393373255,1762542639984,-1000.0,0.0001679,2]
[393373256,1762542639994,-3548.69127864,0.00016824,2]
[393373257,1762542640004,-217.49120534,0.00016824,2]
[393373258,1762542640014,-3725.33798327,0.00016824,2]
[393373259,1762542640024,-366.0,0.00016862,2]
[393373260,1762542640033,-454.0,0.00016951,2]
[393373261,1762542640043,-3548.69127864,0.00016959,2]
[393373262,1762542640053,-217.49120534,0.00016959,2]
[393373263,1762542640065,-3725.33798327,0.00016959,2]
[393373264,1762542640074,-193.43,0.0001699,2]
[393373265,1762542640084,-250.0,0.00017,2]
[393373266,1762542640094,-319.99,0.00017047,2]
[393373267,1762542640104,-3548.69127864,0.00017093,2]
[393373268,1762542640114,-217.49120534,0.00017093,2]
[393373269,1762542640325,-3725.33798327,0.00017093,2]
[393373270,1762542640337,-347.64,0.0001722,2]
[393373271,1762542640347,-195.9456,0.00017221,2]
[393373272,1762542640357,-3548.69127864,0.00017228,2]
[393373273,1762542640367,-217.49120534,0.00017228,2]
[393373274,1762542640377,-3725.33798327,0.00017228,2]
[393373275,1762542640386,-168.0,0.00017255,2]
[393373276,1762542640396,-1096.14076774,0.00017321,2]
[393373277,1762542640405,-1000.0,0.00017321,2]
[393373278,1762542640414,-170.18333266,0.00017321,2]
[393373279,1762542640423,-500.0,0.00017321,2]
[393373280,1762542640433,-1000.0,0.00017321,2]
[393373281,1762542640442,-1004.43139356,0.00017321,2]
[393373282,1762542640451,-1000.0,0.00017321,2]
[393373283,1762542640461,-319.99,0.00017321,2]
[393373284,1762542640470,-168.0,0.0001733,2]
[393373285,1762542640479,-168.0,0.00017359,2]
[393373286,1762542640489,-168.0,0.0001736,2]
[393373287,1762542640498,-417.54862495,0.00017361,2]
[393373288,1762542640508,-3548.69127864,0.00017362,2]
[393373289,1762542640517,-217.49120534,0.00017362,2]
[393373290,1762542640527,-3725.33798327,0.00017362,2]
[393373291,1762542640536,-236.87042843,0.00017381,2]
[393373292,1762542640546,-454.0,0.00017392,2]
[393373293,1762542640556,-454.0,0.00017406,2]
[393373294,1762542640567,-3548.69127864,0.00017497,2]
[393373295,1762542640576,-217.49120534,0.00017497,2]
[393373296,1762542640585,-3725.33798327,0.00017497,2]
[393373297,1762542640595,-236.87042843,0.00017554,2]
[393373298,1762542640605,-168.0,0.00017578,2]
[393373299,1762542640615,-319.99,0.00017595,2]
[393373300,1762542640624,-3548.69127864,0.00017631,2]
[393373301,1762542640634,-217.49120534,0.00017631,2]
[393373302,1762542640643,-3725.33798327,0.00017631,2]
[393373303,1762542640652,-454.0,0.00017637,2]
[393373304,1762542640662,-321.47978243,0.00017637,2]
[393373305,1762542640674,-195.0,0.00017637,2]
[393373306,1762542640684,-250.0,0.00017637,2]
[393373307,1762542640695,-300.0,0.00017637,2]
[393373308,1762542640705,-454.0,0.00017662,2]
[393373309,1762542640715,-221.84453216,0.00017678,2]
[393373310,1762542640727,-477.21,0.00017693,2]
[393373311,1762542640737,-1273.0,0.00017723,2]
[393373312,1762542640747,-559.0,0.00017723,2]
[393373313,1762542640757,-6659.0,0.00017723,2]
[393373314,1762542640766,-6476.0,0.00017723,2]
[393373315,1762542640776,-236.87042843,0.00017727,2]
[393373316,1762542640786,-168.0,0.00017757,2]
[393373317,1762542640796,-2142.0,0.00017765,2]
[393373318,1762542640805,-3548.69127864,0.00017766,2]
[393373319,1762542640817,-217.49120534,0.00017766,2]
[393373320,1762542640826,-3725.33798327,0.00017766,2]
[393373321,1762542640836,-893.85465609,0.00017773,2]
[393373322,1762542640846,-454.0,0.00017779,2]
[393373323,1762542640861,-454.0,0.00017822,2]
[393373324,1762542640871,-150.0,0.00017842,2]
[393373325,1762542640881,-607.0,0.00017842,2]
[393373326,1762542640891,-574.0,0.00017842,2]
[393373327,1762542640902,-1316.0,0.00017842,2]
[393373328,1762542640911,-3424.0,0.00017842,2]
[393373329,1762542640921,-820.0,0.00017842,2]
[393373330,1762542640932,-1596.0,0.00017842,2]
[393373331,1762542640942,-812.0,0.00017842,2]
[393373332,1762542640951,-2822.154,0.00017842,2]
[393373333,1762542640961,-199.672,0.00017842,2]
[393373334,1762542640970,-2500.0,0.00017856,3]
[393373335,1762542640979,-454.0,0.00017863,2]
[393373336,1762542640989,-2500.0,0.00017865,3]
[393373337,1762542640998,-320.03,0.00017868,2]
[393373338,1762542641008,-1523.22717164,0.00017868,2]
[393373339,1762542641017,-503.58550355,0.00017868,2]
[393373340,1762542641026,-1500.0,0.00017868,2]
[393373341,1762542641036,-2500.0,0.00017874,3]
[393373342,1762542641046,-2500.0,0.00017882,3]
[393373343,1762542641055,-2500.0,0.00017882,3]
[393373344,1762542641070,-193.43,0.00017884,2]
[393373345,1762542641079,-168.24179502,0.00017889,2]
[393373346,1762542641089,-150.0,0.00017889,2]
[393373347,1762542641098,-200.0,0.00017889,2]
[393373348,1762542641108,-200.0,0.00017889,2]
[393373349,1762542641117,-500.0,0.00017889,2]
[393373350,1762542641127,-200.0,0.00017889,2]
[393373351,1762542641136,-200.0,0.00017889,2]
[393373352,1762542641145,-150.0,0.00017889,2]
[393373353,1762542641155,-150.0,0.00017889,2]
[393373354,1762542641165,-500.0,0.00017889,2]
[393373355,1762542641175,-200.0,0.00017889,2]
[393373356,1762542641185,-150.0,0.00017889,2]
[393373357,1762542641194,-150.0,0.00017889,2]
[393373358,1762542641204,-154.5547493,0.00017889,2]
[393373359,1762542641213,-200.08208835,0.00017889,2]
[393373360,1762542641223,-150.0,0.00017889,2]
[393373361,1762542641232,-509.0,0.00017889,2]
[393373362,1762542641242,-150.0,0.00017889,2]
[393373363,1762542641251,-454.0,0.00017889,2]
[393373364,1762542641261,-150.0,0.0001789,2]
[393373365,1762542641271,-2500.0,0.00017891,3]
[393373366,1762542641280,-2500.0,0.00017891,3]
[393373367,1762542641290,-2500.0,0.000179,3]
[393373368,1762542641299,-372.27294369,0.000179,2]
[393373369,1762542641309,-2500.0,0.000179,3]
[393373370,1762542641319,-477.99034883,0.000179,3]
[393373371,1762542641329,-1000.0,0.000179,2]
[393373372,1762542641339,-3548.69127864,0.000179,2]
[393373373,1762542641348,-2500.0,0.000179,3]
[393373374,1762542641357,-217.49120534,0.000179,2]
[393373375,1762542641366,-236.87042843,0.000179,2]
[393373376,1762542641376,-162.21113264,0.000179,2]
[393373377,1762542641385,-3725.33798327,0.000179,2]
[393373378,1762542641394,-502.98565705,0.00017973,2]
[393373379,1762542641404,-500.0,0.00017973,2]
[393373380,1762542641414,-500.0,0.00017973,2]
[393373381,1762542641423,-500.0,0.00017973,2]
[393373382,1762542641433,-500.0,0.00017973,2]
[393373383,1762542641442,-500.0,0.00017973,2]
[393373384,1762542641454,-501.10194398,0.00017973,2]
[393373385,1762542641463,-500.0,0.00017973,2]
[393373386,1762542641473,-500.0,0.00017973,2]
[393373387,1762542641482,-642.15273204,0.00017973,2]
[393373388,1762542641491,-500.0,0.00017973,2]
[393373389,1762542641501,-500.0,0.00017973,2]
[393373390,1762542641510,-504.25926664,0.00017973,2]
[393373391,1762542641519,-500.0,0.00017973,2]
[393373392,1762542641528,-481.92632213,0.00017973,2]
[393373393,1762542641537,-500.0,0.00017973,2]
[393373394,1762542641546,-500.0,0.00017973,2]
[393373395,1762542641555,-500.0,0.00017973,2]
[393373396,1762542641566,-500.0,0.00017973,2]
[393373397,1762542641575,-500.0,0.00017973,2]
[393373398,1762542641585,-500.0,0.00017973,2]
[393373399,1762542641594,-500.0,0.00017973,2]
[393373400,1762542641603,-500.0,0.00017973,2]
[393373401,1762542641612,-500.0,0.00017973,2]
[393373402,1762542641622,-500.0,0.00017973,2]
[393373403,1762542641631,-500.0,0.00017973,2]
[393373404,1762542641640,-500.0,0.00017973,2]
[393373405,1762542641649,-500.0,0.00017973,2]
[393373406,1762542641658,-500.0,0.00017973,2]
[393373407,1762542641667,-500.0,0.00017973,2]
[393373408,1762542641676,-568.88126658,0.00017973,2]
[393373409,1762542641685,-500.0,0.00017973,2]
[393373410,1762542641695,-516.40310031,0.00017973,2]
[393373411,1762542641704,-1234.23184451,0.0001799,2]
[393373412,1762542641714,-1234.23184451,0.0001799,2]
[393373413,1762542641723,-1234.23184451,0.0001799,2]
[393373414,1762542641732,-151.0,0.00017997,2]
[393373415,1762542641741,-500.0,0.00017998,2]
[393373416,1762542641750,-500.0,0.00017998,2]
[393373417,1762542641759,-3138.7067208,0.00017998,2]
[393373418,1762542641768,-4247.7175817,0.00017999,2]
[393373419,1762542641777,-252524.8631319,0.00017999,2]
[393373420,1762542641787,-387.85351644,0.00017999,2]
[393373421,1762542641796,-300.0,0.00017999,2]
[393373422,1762542641806,-300.0,0.00017999,2]
[393373423,1762542641816,-300.0,0.00017999,2]
[393373424,1762542641825,-629.24326679,0.00017999,2]
[393373425,1762542641834,-37011.8162975,0.00017999,2]
[393373426,1762542641846,-300.0,0.00017999,2]
[393373427,1762542641860,-666.0,0.00017999,2]
[393373428,1762542641870,-300.0,0.00017999,2]
[393373429,1762542641882,-500.0,0.00017999,2]
[393373430,1762542641892,-500.0,0.00017999,2]
[393373431,1762542641901,-193.47,0.00017999,2]
[393373432,1762542641911,-244.0805128,0.00017999,2]
[393373433,1762542641920,-500.0,0.00017999,2]
[393373434,1762542641932,-267.32001155,0.00017999,2]
[393373435,1762542641941,-608.07378319,0.00017999,2]
[393373436,1762542641951,-454.0,0.00018,2]
[393373437,1762542641960,-6240675.32318977,0.00018,2]
[393373438,1762542641976,-251.37,0.00018,2]
[393373439,1762542642000,-400.0,0.00018,2]
[393373440,1762542642011,-660.87722676,0.00018,2]
[393373441,1762542642030,-252.21337783,0.00018,2]
[393373442,1762542642041,-1598.62462718,0.00018,2]
[393373443,1762542642052,-3755.99150574,0.00018,2]
[393373453,1762542642986,-2040.28669856,0.00018,2]
[393373455,1762542642998,-842.34744144,0.00018,2]
[393373456,1762542643041,-2025.29464754,0.00018,2]
[393373457,1762542643053,-1215.6,0.00018,2]
[393373458,1762542643067,-264.551287,0.00018,2]
[393373459,1762542643095,-339.55645724,0.00018,2]
[393373460,1762542643150,-628.57516152,0.00018,2]
[393373464,1762542646261,-587.90238695,0.00018,2]
[393373465,1762542646316,-674.76962602,0.00018,2]
[393373466,1762542646328,-624.96000225,0.00018,2]
[393373467,1762542646405,-532.55164042,0.00018,2]
[393373468,1762542646416,-14289.39999913,0.00018,2]
[393373469,1762542646430,-589.84531789,0.00018,2]
[393373470,1762542646441,-1739.80858611,0.00018,2]
[393373471,1762542646452,-3425.8779472,0.00018,2]
[393373472,1762542646480,-68404.64377995,0.00018,2]
[393373474,1762542646491,-1556.62422694,0.00018,2]
[393373623,1762542751280,-1834.34,0.00016029,2]
[393373647,1762543349055,-151.0,0.00015625,2]
[393373655,1762543455867,-151.0,0.00015743,2]
[393373656,1762543471265,-200.0,0.00016009,2]
[393373661,1762543614464,2462.99242256,0.000162,5]
[393373663,1762543622559,900.0,0.000169,6]
[393373673,1762543680404,-300.01832584,0.00015,2]
[393373674,1762543683569,-283.92785583,0.00015,2]
[393373676,1762543685931,-267.17748346,0.00015,2]
[393373678,1762543689332,-275.56214866,0.00015,2]
[393373679,1762543691494,-280.78466054,0.00015,2]
[393373680,1762543693305,-221.25861658,0.00015,2]
[393373694,1762543710505,-195.90182226,0.00015,2]
[393373699,1762543712972,-2067.71957869,0.00015,2]
[393373700,1762543713001,-290.981863,0.00015,2]
[393373704,1762543715552,-10000.01,0.00015,2]
[393373705,1762543715727,-233.56092777,0.00015,2]
[393373706,1762543715862,-10000.01,0.00015,2]
[393373709,1762543718531,-10000.01,0.00015,2]
[393373710,1762543718790,-210.4552947,0.00015,2]
[393373712,1762543721673,-200.4221138,0.00015,2]
[393373713,1762543722176,-172.37,0.00015093,2]
[393373723,1762543736772,-1.84,0.00015093,2]
[393373730,1762543752100,-1000.0,0.00016416,2]
[393373731,1762543752128,-1000.0,0.00016416,2]
[393373732,1762543752155,-1000.0,0.00016416,2]
[393373733,1762543752183,-1000.0,0.00016416,2]
[393373734,1762543752212,-1000.0,0.00016416,2]
[393373735,1762543752344,-859.946,0.00016416,2]
[393373737,1762543753576,999.0,0.00015855,3]
[393373749,1762543798100,-725.504,0.0001636,2]
[393373768,1762543832147,-2022.02103042,0.00016473,2]
[393373769,1762543832201,-493.97896958,0.00016473,2]
[393373770,1762543832211,-181.08840378,0.000165,2]
[393373771,1762543832223,-118.91159622,0.000165,2]
[393373772,1762543832232,-300.0,0.00016589,2]
[393373773,1762543832242,-1200.0,0.00016589,2]
[393373774,1762543832254,-5959.66084487,0.0001659,2]
[393373775,1762543832264,-211.47738155,0.0001659,2]
[393373776,1762543832273,-2516.0,0.00016592,2]
[393373777,1762543832283,-200.0,0.00016618,2]
[393373778,1762543832294,-250.0,0.00016618,2]
[393373779,1762543832304,-170.18333266,0.00016673,2]
[393373780,1762543832315,-500.0,0.00016673,2]
[393373781,1762543832325,-638.23167784,0.00016673,2]
[393373782,1762543832336,-500.0,0.00016673,2]
[393373783,1762543832347,-500.0,0.00016673,2]
[393373784,1762543832357,-500.0,0.00016673,2]
[393373785,1762543832366,-500.0,0.00016673,2]
[393373786,1762543832375,-500.0,0.00016673,2]
[393373787,1762543832385,-500.0,0.00016673,2]
[393373788,1762543832394,-151.0,0.0001668,2]
[393373789,1762543832404,-151.0,0.0001668,2]
[393373790,1762543832413,-151.0,0.0001668,2]
[393373791,1762543832422,-151.0,0.0001668,2]
[393373792,1762543832431,-151.0,0.0001668,2]
[393373794,1762543832441,-151.0,0.0001668,2]
[393373795,1762543832451,-151.0,0.0001668,2]
[393373796,1762543832461,-151.0,0.0001668,2]
[393373797,1762543832470,-151.0,0.0001668,2]
[393373798,1762543832479,-151.0,0.0001668,2]
[393373799,1762543832488,-151.0,0.0001668,2]
[393373800,1762543832497,-151.0,0.0001668,2]
[393373801,1762543832506,-151.0,0.0001668,2]
[393373802,1762543832515,-151.0,0.0001668,2]
[393373804,1762543832525,-151.0,0.0001668,2]
[393373806,1762543832534,-151.0,0.0001668,2]
[393373807,1762543832543,-151.0,0.0001668,2]
[393373808,1762543832553,-151.0,0.0001668,2]
[393373809,1762543832562,-151.0,0.0001668,2]
[393373810,1762543832571,-151.0,0.0001668,2]
[393373811,1762543832581,-229.89398899,0.0001668,2]
[393373812,1762543832591,-174.21,0.00016682,2]
[393373813,1762543832600,-1000.0,0.00016688,2]
[393373814,1762543832610,-500.0,0.00016689,2]
[393373815,1762543832619,-500.0,0.00016689,2]
[393373816,1762543832628,-500.0,0.00016689,2]
[393373817,1762543832637,-256.0,0.00016689,2]
[393373818,1762543832645,-3719.25,0.00016689,2]
[393373819,1762543832654,-16642.95,0.00016689,2]
[393373820,1762543832664,-8133.92653785,0.00016689,2]
[393373821,1762543832675,-566.25609508,0.00016689,2]
[393373822,1762543832686,-311.01602224,0.00016689,2]
[393373823,1762543832698,-3573.68134483,0.00016689,2]
[393373824,1762543832707,-18092.31,0.00016689,2]
[393373825,1762543832717,-500.0,0.00016689,2]
[393373826,1762543832726,-500.0,0.00016689,2]
[393373827,1762543832735,-500.0,0.00016689,2]
[393373828,1762543832744,-500.0,0.00016689,2]
[393373829,1762543832753,-437.07502368,0.00016689,2]
[393373830,1762543832762,-500.0,0.00016689,2]
[393373831,1762543832771,-500.0,0.00016689,2]
[393373832,1762543832781,-1000.0,0.00016689,2]
[393373833,1762543832791,-1000.0,0.00016689,2]
[393373834,1762543832802,-500.0,0.00016689,2]
[393373835,1762543832811,-500.0,0.00016689,2]
[393373836,1762543832820,-500.0,0.00016689,2]
[393373837,1762543832830,-500.0,0.00016689,2]
[393373839,1762543832839,-500.0,0.00016689,2]
[393373840,1762543832849,-500.0,0.00016689,2]
[393373841,1762543832858,-500.0,0.00016689,2]
[393373842,1762543832867,-500.0,0.00016689,2]
[393373843,1762543832876,-500.0,0.00016689,2]
[393373844,1762543832885,-500.0,0.00016689,2]
[393373845,1762543832894,-500.0,0.00016689,2]
[393373846,1762543832912,-500.0,0.00016689,2]
[393373847,1762543832923,-500.0,0.00016689,2]
[393373848,1762543832932,-500.0,0.00016689,2]
[393373849,1762543832941,-500.0,0.00016689,2]
[393373850,1762543832951,-500.0,0.00016689,2]
[393373851,1762543832960,-500.0,0.00016689,2]
[393373852,1762543832970,-500.0,0.00016689,2]
[393373853,1762543832980,-500.0,0.00016689,2]